bitfinex-derivatives/quotes_BTCF0:USTF0_20251125
["timestamp","ask_amount","ask_price","bid_price","bid_amount"]
[1764066856525,0.7614467,87391.0,87390.0,0.1569]
[1764066856719,0.75,87391.0,87390.0,0.1569]
[1764066857617,0.5,87391.0,87390.0,0.1569]
[1764066858624,0.08222292,87401.0,87400.0,0.11179]
[1764066858929,0.53222292,87401.0,87400.0,0.11179]
[1764066859227,0.40019761,87401.0,87400.0,0.11179]
[1764066859425,0.20354578,87401.0,87400.0,0.11179]
[1764066859826,0.01354578,87401.0,87400.0,0.11179]
[1764066860034,0.08222292,87416.0,87415.0,0.11179]
[1764066860232,0.08222292,87420.0,87415.0,0.11179]
[1764066860526,0.45,87420.0,87414.0,0.09007]
[1764066860733,0.0114443,87410.0,87407.0,0.00017162]
[1764066861026,0.3814443,87410.0,87407.0,0.00017162]
[1764066861326,0.0114445,87408.0,87407.0,1.62e-06]
[1764066861534,0.3914445,87408.0,87407.0,1.62e-06]
[1764066861935,1.00584984,87408.0,87407.0,1.62e-06]
[1764066862132,1.00584984,87408.0,87390.0,0.03511]
[1764066862133,0.0114467,87391.0,87390.0,0.03511]
[1764066862323,0.3914467,87391.0,87390.0,0.03511]
[1764066862527,0.3914467,87391.0,87384.0,0.03511]
[1764066862728,0.0114472,87388.0,87384.0,0.1469]
[1764066862933,0.4414472,87388.0,87384.0,0.1469]
[1764066863232,0.25091085,87388.0,87384.0,0.1469]
[1764066863540,0.26235805,87388.0,87384.0,0.1469]
[1764066863932,0.25091085,87388.0,87387.0,0.11179]
[1764066866223,0.00017129,87395.0,87387.0,0.11179]
[1764066866437,0.00017129,87395.0,87394.0,0.11179]
[1764066866740,0.40161749,87395.0,87394.0,0.11179]
[1764066866938,0.90161749,87395.0,87394.0,0.11179]
[1764066868444,0.50017129,87395.0,87394.0,0.11179]
[1764066869437,0.50017129,87395.0,87390.0,0.03511]
[1764066869438,0.93017129,87395.0,87390.0,0.09007]
[1764066869638,0.0114463,87394.0,87390.0,0.1469]
[1764066869852,0.4414463,87394.0,87390.0,0.1469]
[1764066870233,0.0114466,87392.0,87390.0,0.1469]
[1764066870432,0.3814466,87392.0,87390.0,0.1469]
[1764066870634,0.00017129,87395.0,87391.0,0.11179]
[1764066870833,0.29017129,87395.0,87391.0,0.11179]
[1764066871034,0.11442694,87392.0,87391.0,0.11179]
[1764066871233,0.00017129,87395.0,87394.0,0.11179]
[1764066871930,0.50017129,87395.0,87394.0,0.11179]
[1764066874237,0.0114467,87391.0,87390.0,0.1469]
[1764066874439,0.4414467,87391.0,87390.0,0.1469]
[1764066874737,0.16,87391.0,87390.0,0.1469]
[1764066874943,0.50017129,87395.0,87394.0,0.11179]
[1764066875335,0.00017129,87395.0,87394.0,0.11179]
[1764066876544,0.38017129,87395.0,87394.0,0.11179]
[1764066877442,0.00017129,87395.0,87394.0,0.11179]
[1764066878045,0.01161749,87395.0,87394.0,0.11179]
[1764066879441,0.00017129,87395.0,87394.0,0.11179]
[1764066880037,0.0114442,87411.0,87410.0,0.11179]
[1764066880242,0.4614442,87411.0,87410.0,0.11179]
[1764066880543,0.4614442,87411.0,87408.0,0.03511]
[1764066880737,0.4614442,87411.0,87402.0,0.1469]
[1764066880738,0.0114452,87403.0,87402.0,0.1469]
[1764066881046,0.0120059,87397.0,87396.0,0.03511]
[1764066881244,0.4620059,87397.0,87396.0,0.15541]
[1764066882446,0.45056,87397.0,87396.0,0.1668561]
[1764066882646,0.08056,87397.0,87396.0,0.1668561]
[1764066882843,0.58056,87397.0,87396.0,0.1668561]
[1764066883039,0.50056,87397.0,87396.0,0.15541]
[1764066883238,0.95056,87397.0,87396.0,0.15541]
[1764066885146,0.70056,87397.0,87396.0,0.15541]
[1764066885336,0.70028,87397.0,87396.0,0.15541]
[1764066885541,0.70056,87397.0,87396.0,0.15541]
[1764066886152,0.92056,87397.0,87396.0,0.15541]
[1764066886347,0.92,87397.0,87396.0,0.15541]
[1764066886555,0.00056,87410.0,87409.0,0.1203]
[1764066886745,0.00056,87403.0,87402.0,0.15769]
[1764066886945,0.3920052,87403.0,87402.0,0.15769]
[1764066887543,0.38,87403.0,87402.0,0.15769]
[1764066887847,0.40056,87403.0,87402.0,0.15769]
[1764066888151,0.4120052,87403.0,87402.0,0.15769]
[1764066888945,0.40056,87403.0,87402.0,0.15769]
[1764066889146,0.4120052,87403.0,87402.0,0.15769]
[1764066889345,0.08028,87403.0,87402.0,0.15769]
[1764066889852,0.00028,87403.0,87402.0,0.15769]
[1764066890251,0.00056,87403.0,87402.0,0.15769]
[1764066890645,0.43056,87403.0,87402.0,0.15769]
[1764066892249,0.4420052,87403.0,87402.0,0.15769]
[1764066892552,0.15056,87403.0,87402.0,0.15769]
[1764066894741,0.39056,87403.0,87402.0,0.15769]
[1764066896648,0.00056,87403.0,87402.0,0.15769]
[1764066896853,0.13056,87403.0,87402.0,0.15769]
[1764066897352,0.37056,87403.0,87402.0,0.15769]
[1764066897862,0.00056,87403.0,87402.0,0.15769]
[1764066898162,0.12056,87403.0,87402.0,0.15769]
[1764066898656,0.00056,87403.0,87402.0,0.15769]
[1764066899458,0.08222292,87405.0,87404.0,0.11029]
[1764066899660,0.10222292,87405.0,87404.0,0.11029]
[1764066899853,0.47222292,87405.0,87404.0,0.11029]
[1764066900052,0.39,87405.0,87404.0,0.11029]
[1764066901359,0.39,87405.0,87404.0,0.05611]
[1764066901558,0.011445,87404.0,87396.0,0.03511]
[1764066901756,0.0114459,87397.0,87396.0,0.09122]
[1764066902057,0.49366882,87397.0,87394.0,0.00017162]
[1764066902259,0.6080794,87397.0,87394.0,0.05628162]
[1764066902758,0.0114462,87395.0,87394.0,0.05628162]
[1764066902958,0.4114462,87395.0,87394.0,0.05628162]
[1764066903461,0.4114462,87395.0,87394.0,0.11046162]
[1764066903661,0.0114483,87379.0,87378.0,0.03358]
[1764066903852,0.04822,87361.0,87360.0,0.13356]
[1764066904053,0.44822,87361.0,87360.0,0.04668047]
[1764066904361,0.11042,87347.0,87346.0,0.11029]
[1764066904666,0.11042,87340.0,87339.0,0.14387]
[1764066904848,0.55042,87340.0,87339.0,0.14387]
[1764066905051,0.55042,87340.0,87339.0,0.05611]
[1764066905251,0.55042,87340.0,87332.0,0.11029]
[1764066905252,0.1218743,87333.0,87332.0,0.11029]
[1764066905457,0.5618743,87333.0,87332.0,0.11029]
[1764066906157,0.5618743,87333.0,87332.0,0.05611]
[1764066906464,0.22042,87333.0,87332.0,0.05611]
[1764066906650,0.11042,87333.0,87332.0,0.11029]
[1764066906968,0.52042,87333.0,87332.0,0.11029]
[1764066907561,0.1218745,87332.0,87331.0,0.00017173]
[1764066907759,0.1218745,87332.0,87298.0,0.04090848]
[1764066907760,0.11042,87312.0,87311.0,0.14387]
[1764066908153,0.6749249,87312.0,87311.0,0.14387]
[1764066908356,0.6749249,87312.0,87311.0,0.11029]
[1764066908562,0.05626,87312.0,87311.0,0.11029]
[1764066908864,0.9918771,87312.0,87311.0,0.11029]
[1764066909358,0.61042,87312.0,87311.0,0.11029]
[1764066909657,1.04042,87312.0,87311.0,0.05611]
[1764066909863,0.11042,87305.0,87304.0,0.14387]
[1764066910652,0.1218763,87318.0,87317.0,0.05611]
[1764066910861,0.2818763,87318.0,87317.0,0.05611]
[1764066911260,0.39641793,87318.0,87317.0,0.05611]
[1764066911462,0.38496163,87318.0,87317.0,0.05611]
[1764066911854,0.88496163,87318.0,87317.0,0.05611]
[1764066912054,1.13496163,87318.0,87317.0,0.05611]
[1764066912259,0.71042,87318.0,87317.0,0.11029]
[1764066912456,0.5,87318.0,87317.0,0.11029]
[1764066912859,0.10922,87313.0,87312.0,0.14522]
[1764066914662,0.0114558,87323.0,87322.0,0.0538]
[1764066914863,0.3214558,87323.0,87322.0,0.11207]
[1764066915061,0.15569752,87323.0,87322.0,0.11207]
[1764066915258,0.01249326,87323.0,87322.0,0.11207]
[1764066915454,0.33249326,87323.0,87322.0,0.11207]
[1764066916160,0.32103746,87323.0,87322.0,0.11207]
[1764066916365,0.27113471,87323.0,87322.0,0.11207]
[1764066918064,0.27123196,87323.0,87322.0,0.11207]
[1764066918272,0.03123196,87323.0,87322.0,0.11207]
[1764066919063,0.28268756,87323.0,87322.0,0.11207]
[1764066919669,0.03123196,87323.0,87322.0,0.11207]
[1764066920954,0.26123196,87323.0,87322.0,0.11207]
[1764066924667,0.00123196,87323.0,87322.0,0.11207]
[1764066924867,0.01123196,87323.0,87322.0,0.11207]
[1764066925068,0.32123196,87323.0,87322.0,0.11207]
[1764066925263,0.06123196,87323.0,87322.0,0.11207]
[1764066925865,0.30123196,87323.0,87322.0,0.11207]
[1764066926673,0.01123196,87323.0,87322.0,0.11207]
[1764066927359,0.24123196,87323.0,87322.0,0.11207]
[1764066930567,0.04475579,87323.0,87322.0,0.11207]
[1764066930877,0.4,87323.0,87322.0,0.11207]
[1764066932065,0.0114551,87328.0,87321.0,0.0114559]
[1764066932272,0.3714551,87328.0,87327.0,0.11207]
[1764066932873,0.47451146,87328.0,87327.0,0.11207]
[1764066933072,0.97451146,87328.0,87327.0,0.11207]
[1764066941279,1.05686415,87328.0,87327.0,0.11207]
[1764066941581,0.70686415,87328.0,87327.0,0.11207]
[1764066941775,1.06451146,87328.0,87327.0,0.11207]
[1764066942971,0.64686415,87328.0,87327.0,0.11207]
[1764066943577,0.56451146,87328.0,87327.0,0.11207]
[1764066943776,1.06451146,87328.0,87327.0,0.11207]
[1764066944583,1.06451146,87328.0,87327.0,0.0538]
[1764066944882,1.06451146,87328.0,87327.0,0.04851]
[1764066945479,0.0114566,87316.0,87315.0,0.15477]
[1764066945674,0.4214566,87316.0,87315.0,0.15477]
[1764066945875,0.12025,87315.0,87314.0,0.00017173]
[1764066946079,0.53025,87315.0,87314.0,0.00017173]
[1764066946574,0.64476146,87315.0,87314.0,0.05938173]
[1764066947284,0.64476146,87315.0,87314.0,0.11592173]
[1764066948478,1.14476146,87315.0,87314.0,0.11592173]
[1764066955892,0.94687874,87315.0,87314.0,0.11592173]
[1764066965811,0.61451146,87315.0,87314.0,0.11592173]
[1764066966003,0.5,87315.0,87314.0,0.11592173]
[1764066967310,0.18076,87323.0,87322.0,0.1585858]
[1764066967510,0.57076,87323.0,87322.0,0.1585858]
[1764066968108,0.5822156,87323.0,87322.0,0.14713]
[1764066968310,0.57076,87323.0,87322.0,0.14713]
[1764066968817,1.07076,87323.0,87322.0,0.14713]
[1764066970808,0.0114566,87316.0,87314.0,0.00017173]
[1764066971115,0.0114566,87316.0,87308.0,0.0308094]
[1764066971116,0.1146,87306.0,87305.0,0.19211]
[1764066971418,0.3946,87306.0,87305.0,0.19211]
[1764066977621,0.1146,87301.0,87300.0,0.07209]
[1764066977920,0.1260589,87298.0,87297.0,0.00017173]
[1764066978115,0.5660589,87298.0,87297.0,0.00017173]
[1764066978620,0.58160798,87298.0,87297.0,0.00017173]
[1764066978918,0.6961483,87298.0,87297.0,0.00017173]
[1764066979122,0.1637212,87281.0,87280.0,0.15096]
[1764066979425,0.5837212,87281.0,87280.0,0.15096]
[1764066979820,0.15226,87281.0,87280.0,0.19211]
[1764066980217,0.00017184,87289.0,87280.0,0.2035712]
[1764066980521,0.58243184,87289.0,87288.0,0.15096]
[1764066980914,0.0114612,87281.0,87280.0,0.07209]
[1764066981113,0.15226,87273.0,87272.0,0.15113184]
[1764066981523,0.1637222,87273.0,87272.0,0.15113184]
[1764066982021,0.15226,87273.0,87272.0,0.15113184]
[1764066983115,0.011462,87275.0,87272.0,0.15113184]
[1764066983116,0.088752,87275.0,87274.0,0.15096]
[1764066983315,0.163722,87275.0,87274.0,0.15096]
[1764066985425,0.15226,87275.0,87274.0,0.15096]
[1764066986227,0.58226,87275.0,87274.0,0.15096]
[1764066987331,0.15226,87273.0,87272.0,0.00017184]
[1764066987631,0.58226,87273.0,87272.0,0.15113184]
[1764066988526,0.15226,87281.0,87280.0,0.15096]
[1764066988734,0.07729,87281.0,87280.0,0.15096]
[1764066989730,0.53226,87281.0,87280.0,0.15096]
[1764066994233,0.15226,87281.0,87280.0,0.15096]
[1764066995627,0.55226,87281.0,87280.0,0.15096]
[1764066996036,0.15226,87273.0,87272.0,0.15113184]
[1764066996334,0.07729,87276.0,87275.0,0.15096]
[1764066996534,0.15226,87276.0,87275.0,0.15096]
[1764066997637,0.0114616,87278.0,87277.0,0.0114617]
[1764066997836,0.1637216,87278.0,87277.0,0.1624217]
[1764066998030,0.1637216,87278.0,87277.0,0.15096]
[1764067002040,0.1559307,87285.0,87284.0,0.15055]
[1764067002339,0.1742907,87285.0,87284.0,0.15055]
[1764067002539,0.4759307,87285.0,87284.0,0.15055]
[1764067002741,0.14447,87285.0,87284.0,0.15055]
[1764067003134,0.64447,87285.0,87284.0,0.15055]
[1764067004538,0.14447,87285.0,87284.0,0.15055]
[1764067007848,0.07283,87285.0,87284.0,0.15055]
[1764067008149,0.14447,87285.0,87284.0,0.15055]
[1764067008343,0.0114577,87308.0,87288.0,0.1620102]
[1764067008344,0.08249215,87302.0,87288.0,0.1620102]
[1764067008547,0.0114577,87308.0,87288.0,0.1620102]
[1764067008548,0.0114589,87299.0,87288.0,0.1620102]
[1764067008953,0.01529538,87298.0,87288.0,0.1620102]
[1764067009144,0.07283,87302.0,87301.0,0.15055]
[1764067009452,0.07283,87302.0,87301.0,0.1620085]
[1764067009755,0.1559274,87310.0,87309.0,0.15055]
[1764067009948,0.2659274,87310.0,87309.0,0.15055]
[1764067010149,0.58114304,87310.0,87309.0,0.15055]
[1764067011144,1.08114304,87310.0,87309.0,0.15055]
[1764067011349,0.1559284,87302.0,87301.0,0.00017184]
[1764067011539,0.5459284,87302.0,87301.0,0.00017184]
[1764067011946,0.14447,87291.0,87290.0,0.15055]
[1764067012257,0.14447,87295.0,87294.0,0.19268]
[1764067012456,0.56447,87295.0,87294.0,0.19268]
[1764067013860,0.56447,87295.0,87294.0,0.15055]
[1764067014062,0.56447,87295.0,87294.0,0.07576]
[1764067014262,0.14447,87289.0,87288.0,0.19268]
[1764067014461,0.52447,87289.0,87288.0,0.07576]
[1764067017372,0.52447,87289.0,87288.0,0.15055]
[1764067019060,0.52447,87289.0,87288.0,0.07576]
[1764067020254,0.52447,87289.0,87288.0,0.15388]
[1764067020460,0.14447,87289.0,87288.0,0.202]
[1764067020661,0.54447,87289.0,87288.0,0.202]
[1764067021969,0.51447,87289.0,87288.0,0.202]
[1764067023768,0.5259301,87289.0,87288.0,0.15388]
[1764067024369,0.51447,87289.0,87288.0,0.15388]
[1764067024865,0.31447,87289.0,87288.0,0.15388]
[1764067025266,0.31447,87289.0,87286.0,0.01163234]
[1764067025267,0.158039,87298.0,87297.0,0.15224]
[1764067025468,0.558039,87298.0,87297.0,0.12614463]
[1764067025668,0.54658,87298.0,87297.0,0.12614463]
[1764067027171,0.30352,87298.0,87297.0,0.12614463]
[1764067027377,0.00017184,87303.0,87302.0,0.15224]
[1764067027378,0.14675184,87303.0,87302.0,0.15224]
[1764067027558,0.14675184,87303.0,87302.0,0.1636984]
[1764067028164,0.07369184,87303.0,87302.0,0.1636984]
[1764067028366,0.00017184,87303.0,87302.0,0.1636984]
[1764067029974,0.14658,87315.0,87314.0,0.1636968]
[1764067030658,0.09718278,87330.0,87329.0,0.07412]
[1764067030860,0.55658,87330.0,87329.0,0.07412]
[1764067031164,0.58306943,87330.0,87329.0,0.07412]
[1764067031367,0.69757827,87330.0,87329.0,0.07412]
[1764067032071,0.5,87330.0,87329.0,0.15224]
[1764067032775,0.5,87330.0,87329.0,0.1636949]
[1764067033372,0.66039,87330.0,87329.0,0.15224]
[1764067033673,0.16039,87330.0,87329.0,0.15224]
[1764067037573,0.16039,87330.0,87321.0,0.00017184]
[1764067037574,0.1718458,87322.0,87321.0,0.00017184]
[1764067037770,0.52039,87322.0,87321.0,0.00017184]
[1764067037975,0.22039,87322.0,87321.0,0.07639184]
[1764067038279,0.49039,87322.0,87321.0,0.07639184]
[1764067038671,0.26039,87322.0,87321.0,0.07639184]
[1764067039188,0.26039,87322.0,87321.0,0.15082184]
[1764067040171,0.76039,87322.0,87321.0,0.15082184]
[1764067040976,0.96039,87322.0,87321.0,0.15082184]
[1764067041879,0.96039,87322.0,87321.0,0.00017184]
[1764067041880,1.07490933,87322.0,87321.0,0.00017184]
[1764067044491,0.16039,87307.0,87306.0,0.19353]
[1764067044672,0.60039,87307.0,87306.0,0.15065]
[1764067044981,0.60039,87307.0,87300.0,0.04288]
[1764067044982,0.16039,87301.0,87300.0,0.19353]
[1764067045577,0.1718493,87295.0,87294.0,0.15065]
[1764067045778,0.1718502,87289.0,87288.0,0.15065]
[1764067045973,0.1718502,87289.0,87276.0,0.04027334]
[1764067045974,0.08037,87294.0,87290.0,0.04288]
[1764067046174,0.18375,87306.0,87305.0,0.15065]
[1764067046475,0.16039,87291.0,87290.0,0.15065]
[1764067048774,0.16039,87291.0,87290.0,0.19353]
[1764067049379,0.08037,87291.0,87290.0,0.19353]
[1764067049580,0.16039,87297.0,87296.0,0.15065]
[1764067049786,0.00017184,87299.0,87298.0,0.15065]
[1764067052281,0.1718468,87314.0,87313.0,0.15065]
[1764067056189,0.1718479,87306.0,87305.0,0.00017184]
[1764067056376,0.3918479,87306.0,87305.0,0.00017184]
[1764067057078,0.3918479,87306.0,87305.0,0.15082184]
[1764067057384,0.1718479,87306.0,87305.0,0.15082184]
[1764067057689,0.16039,87306.0,87305.0,0.15082184]
[1764067058590,0.1718479,87306.0,87305.0,0.15082184]
[1764067060894,0.6218479,87306.0,87305.0,0.00017184]
[1764067061487,0.1603989,87298.0,87297.0,0.14977]
[1764067062893,0.6603979,87306.0,87305.0,0.14977]
[1764067063095,0.8603979,87306.0,87305.0,0.14977]
[1764067063284,0.3603979,87306.0,87305.0,0.14977]
[1764067063485,0.47494871,87306.0,87305.0,0.14977]
[1764067063888,0.27146,87306.0,87305.0,0.14977]
[1764067064190,0.14894,87306.0,87305.0,0.14977]
[1764067066385,0.14894,87298.0,87297.0,0.14977]
[1764067066589,0.50894,87298.0,87297.0,0.07682]
[1764067066794,0.1604,87290.0,87289.0,0.14994184]
[1764067068797,0.14894,87290.0,87289.0,0.16140194]
[1764067074799,0.14894,87290.0,87289.0,0.14994184]
[1764067078200,0.53894,87290.0,87289.0,0.14994184]
[1764067078395,0.553053,87290.0,87289.0,0.07699184]
[1764067078797,0.27894,87290.0,87289.0,0.07699184]
[1764067078997,0.27894,87290.0,87289.0,0.14122184]
[1764067079403,0.26350131,87290.0,87289.0,0.00017184]
[1764067079698,0.68350131,87290.0,87289.0,0.00017184]
[1764067080905,0.68350131,87290.0,87270.0,0.26789086]
[1764067080906,0.1459325,87271.0,87270.0,0.26789086]
[1764067081106,0.1459325,87271.0,87270.0,0.17076]
[1764067081800,0.1459325,87271.0,87270.0,0.1308]
[1764067082108,0.1459325,87271.0,87270.0,0.11798]
[1764067082508,0.1459325,87271.0,87270.0,0.09737]
[1764067083104,0.00017184,87279.0,87276.0,0.0114617]
[1764067083105,0.06814184,87279.0,87276.0,0.0114617]
[1764067083301,0.13464184,87279.0,87278.0,0.1308]
[1764067083702,0.63464184,87279.0,87278.0,0.1308]
[1764067092213,0.78464184,87279.0,87278.0,0.06657]
[1764067092417,0.13526,87270.0,87269.0,0.22552086]
[1764067092723,0.13526,87270.0,87269.0,0.12839]
[1764067092905,0.0114627,87269.0,87268.0,0.12839]
[1764067093112,0.1467227,87269.0,87268.0,0.12839]
[1764067094017,0.1467227,87269.0,87262.0,0.00031997]
[1764067094018,0.1467235,87263.0,87262.0,0.12870997]
[1764067094219,0.1467235,87263.0,87262.0,0.12856184]
[1764067094716,0.13526,87263.0,87262.0,0.12856184]
[1764067095112,0.13526,87263.0,87262.0,0.12956184]
[1764067095617,0.13526,87263.0,87262.0,0.00117184]
[1764067096526,0.13526,87263.0,87262.0,0.00217184]
[1764067096722,0.58526,87263.0,87262.0,0.00217184]
[1764067097418,0.17335,87246.0,87245.0,0.12839]
[1764067097925,0.17335,87246.0,87245.0,0.06393]
[1764067098721,0.17335,87246.0,87245.0,0.12839]
[1764067099121,0.13526,87241.0,87240.0,0.12839]
[1764067101724,0.13526,87241.0,87240.0,0.1398565]
[1764067102324,0.13526,87241.0,87240.0,0.12839]
[1764067120136,0.13526,87238.0,87237.0,0.12850427]
[1764067122229,0.13526,87238.0,87237.0,0.15923977]
[1764067122941,0.13526,87238.0,87237.0,0.12850427]
[1764067124345,0.06439,87244.0,87243.0,0.1434962]
[1764067124534,0.12956,87252.0,87251.0,0.1434951]
[1764067125634,0.01163664,87254.0,87253.0,0.13203]
[1764067125635,0.00017184,87254.0,87253.0,0.13203]
[1764067126033,0.12973184,87254.0,87253.0,0.13203]
[1764067127539,0.1410247,87255.0,87254.0,0.13203]
[1764067127735,0.12956,87255.0,87254.0,0.1434947]
[1764067128043,0.06439,87255.0,87254.0,0.1434947]
[1764067129039,0.1410237,87262.0,87261.0,0.0114637]
[1764067129236,0.1410237,87262.0,87261.0,0.1434937]
[1764067129840,0.12956,87262.0,87261.0,0.1434937]
[1764067130042,0.06439,87262.0,87261.0,0.1434937]
[1764067130342,0.00017194,87263.0,87262.0,0.13203]
[1764067131431,0.50017194,87263.0,87262.0,0.13203]
[1764067132746,0.00017194,87263.0,87262.0,0.13203]
[1764067134748,0.06456194,87263.0,87262.0,0.13203]
[1764067134944,0.00017194,87263.0,87262.0,0.13203]
[1764067138642,0.06456194,87263.0,87262.0,0.13203]
[1764067139049,0.12535194,87263.0,87262.0,0.13203]
[1764067142049,0.57535194,87263.0,87262.0,0.13203]
[1764067142550,0.18535194,87263.0,87262.0,0.13203]
[1764067142943,0.12535194,87263.0,87262.0,0.13203]
[1764067148558,0.00017194,87263.0,87262.0,0.13203]
[1764067150050,0.1359213,87280.0,87279.0,0.12551]
[1764067150249,0.3559213,87280.0,87279.0,0.12551]
[1764067150454,0.34446,87280.0,87279.0,0.12551]
[1764067150655,0.35823224,87280.0,87279.0,0.12551]
[1764067152274,0.35923224,87280.0,87279.0,0.12551]
[1764067155381,0.35823224,87280.0,87279.0,0.12551]
[1764067155585,0.35923224,87280.0,87279.0,0.06149]
[1764067155883,0.35923224,87280.0,87279.0,0.12338]
[1764067156386,0.35923224,87280.0,87279.0,0.06149]
[1764067157684,0.35923224,87280.0,87279.0,0.12338]
[1764067169195,0.1382222,87273.0,87272.0,0.15965]
[1764067169496,0.12676,87273.0,87272.0,0.15965]
[1764067171595,0.25676,87273.0,87272.0,0.15965]
[1764067174286,0.53676,87273.0,87272.0,0.15965]
[1764067175387,0.15676,87273.0,87272.0,0.19050069]
[1764067176494,0.15676,87273.0,87272.0,0.15965]
[1764067186503,0.15676,87273.0,87272.0,0.19050069]
[1764067188501,0.12676,87273.0,87272.0,0.19050069]
[1764067188704,0.11773,87287.0,87286.0,0.1328205]
[1764067189000,0.00017194,87288.0,87287.0,0.12136]
[1764067189206,0.05859004,87288.0,87287.0,0.12136]
[1764067190710,0.11773004,87288.0,87287.0,0.12136]
[1764067191507,0.05859004,87288.0,87287.0,0.12136]
[1764067192008,0.1291877,87307.0,87306.0,0.12136]
[1764067192198,0.1691877,87307.0,87306.0,0.12136]
[1764067192398,0.15773,87307.0,87306.0,0.12136]
[1764067192798,0.17130483,87307.0,87306.0,0.12136]
[1764067193197,0.55130483,87307.0,87306.0,0.12136]
[1764067194406,0.55230483,87307.0,87306.0,0.12136]
[1764067194604,0.17230483,87307.0,87306.0,0.12136]
[1764067195107,0.08453133,87316.0,87315.0,0.15243]
[1764067195405,0.42463671,87316.0,87315.0,0.15243]
[1764067195793,0.53916391,87316.0,87315.0,0.15243]
[1764067195997,1.02770731,87316.0,87315.0,0.15243]
[1764067196702,0.70770731,87316.0,87315.0,0.15243]
[1764067196909,0.97770731,87316.0,87315.0,0.15243]
[1764067197107,0.97770731,87316.0,87315.0,0.15443]
[1764067197298,0.97770731,87316.0,87315.0,0.15643]
[1764067200798,0.97770731,87316.0,87315.0,0.004]
[1764067201511,0.011458,87305.0,87304.0,0.14257]
[1764067201713,0.461458,87305.0,87304.0,0.14257]
[1764067201909,0.171458,87305.0,87304.0,0.14257]
[1764067202413,0.66,87305.0,87304.0,0.14257]
[1764067202614,0.5,87305.0,87304.0,0.14257]
[1764067203415,0.501,87305.0,87304.0,0.14257]
[1764067203613,0.502,87305.0,87304.0,0.14257]
[1764067203816,0.002,87305.0,87304.0,0.14257]
[1764067206523,0.01318011,87316.0,87315.0,0.1610767]
[1764067206712,0.01162744,87324.0,87323.0,0.1280556]
[1764067207021,0.38162744,87324.0,87323.0,0.1280556]
[1764067207520,0.49616907,87324.0,87323.0,0.1166]
[1764067207727,0.50952846,87324.0,87323.0,0.1166]
[1764067208109,0.50952846,87324.0,87323.0,0.1216]
[1764067208509,0.50952846,87324.0,87323.0,0.1266]
[1764067212114,0.50952846,87324.0,87323.0,0.01]
[1764067212412,0.50952846,87324.0,87323.0,0.12232]
[1764067213013,0.39498683,87324.0,87323.0,0.12232]
[1764067213216,0.38553123,87324.0,87323.0,0.11232]
[1764067213722,0.38453123,87324.0,87323.0,0.11232]
[1764067214119,0.38553123,87324.0,87323.0,0.11232]
[1764067214320,0.38453123,87324.0,87323.0,0.11232]
[1764067214520,0.38553123,87324.0,87323.0,0.11232]
[1764067214721,0.38453123,87324.0,87323.0,0.11232]
[1764067215915,0.0114572,87311.0,87310.0,0.14534]
[1764067216121,0.4114572,87311.0,87310.0,0.14534]
[1764067220026,0.4114572,87311.0,87310.0,0.03302]
[1764067220528,0.0114579,87306.0,87305.0,0.08835]
[1764067220725,0.4514579,87306.0,87305.0,0.08835]
[1764067221328,0.4514579,87306.0,87305.0,0.14534]
[1764067221923,0.44,87306.0,87305.0,0.14534]
[1764067222232,0.0114574,87310.0,87309.0,0.11232]
[1764067222428,0.08249215,87313.0,87312.0,0.11232]
[1764067222624,0.0114564,87317.0,87316.0,0.11232]
[1764067222820,0.2914564,87317.0,87316.0,0.11232]
[1764067223029,0.0414564,87317.0,87316.0,0.11232]
[1764067223433,0.4514564,87317.0,87316.0,0.11232]
[1764067224919,0.44,87317.0,87316.0,0.11232]
[1764067225630,0.4514564,87317.0,87316.0,0.11232]
[1764067226033,0.44,87317.0,87316.0,0.11232]
[1764067227538,0.0114555,87325.0,87323.0,0.11232]
[1764067227733,0.40353123,87324.0,87323.0,0.11232]
[1764067228239,0.51805712,87324.0,87323.0,0.11232]
[1764067229634,0.40353123,87324.0,87323.0,0.11232]
[1764067230730,0.01353123,87324.0,87323.0,0.11232]
[1764067232029,0.00017184,87324.0,87323.0,0.11232]
[1764067234936,0.0114524,87348.0,87347.0,0.11232]
[1764067235240,0.4014524,87348.0,87347.0,0.11232]
[1764067235632,0.90321007,87348.0,87347.0,0.11232]
[1764067237335,0.90321007,87348.0,87347.0,0.05533]
[1764067237648,0.011453,87343.0,87342.0,0.14682]
[1764067237941,0.411453,87343.0,87342.0,0.14682]
[1764067245040,0.4,87343.0,87342.0,0.14682]
[1764067248447,0.0114532,87342.0,87339.0,0.00017172]
[1764067248740,0.4514532,87342.0,87339.0,0.00017172]
[1764067248940,0.4514532,87342.0,87320.0,0.03072]
[1764067248941,0.0114552,87326.0,87320.0,0.03072]
[1764067249147,0.4614552,87326.0,87320.0,0.03072]
[1764067249446,0.9614552,87326.0,87320.0,0.03072]
[1764067249647,1.07594699,87326.0,87325.0,0.14293]
[1764067252436,1.06449179,87326.0,87325.0,0.14293]
[1764067258043,0.79,87326.0,87325.0,0.14293]
[1764067260547,0.79,87326.0,87325.0,0.03072]
[1764067261954,0.90451408,87326.0,87325.0,0.03072]
[1764067264557,0.90451408,87326.0,87320.0,0.07749]
[1764067264558,0.0114554,87325.0,87320.0,0.07749]
[1764067264762,0.4614554,87325.0,87320.0,0.07663]
[1764067265153,0.0948572,87311.0,87310.0,0.12633]
[1764067265355,0.5048572,87311.0,87310.0,0.12633]
[1764067267452,0.0934,87311.0,87310.0,0.12633]
[1764067267652,0.3934,87311.0,87310.0,0.12633]
[1764067271862,0.1334,87311.0,87310.0,0.12633]
[1764067272249,0.4634,87311.0,87310.0,0.12633]
[1764067273263,0.2034,87311.0,87310.0,0.12633]
[1764067275956,0.0417,87311.0,87310.0,0.12633]
[1764067276157,0.056627,87313.0,87312.0,0.09884]
[1764067276361,0.131797,87313.0,87312.0,0.09884]
[1764067276561,0.401797,87313.0,87312.0,0.09884]
[1764067278767,0.39034,87313.0,87312.0,0.09884]
[1764067278970,0.53034,87313.0,87312.0,0.04904]
[1764067279163,0.53034,87313.0,87312.0,0.09884]
[1764067280059,0.17034,87313.0,87312.0,0.09884]